Cogmind - Beta 17.1 @@@ ROGUE MODE // 2026.09.14 @ 00:07:38 Player: 7H-NLC Result: Self-destructed Performance ------------- Evolutions (4) 2000 Regions Visited (7) 1400 Robots Destroyed (36) 180 Value Destroyed (1432) 1432 Prototype IDs (20) 400 Alien Tech Used (0) 0 Bonus (1032) 1032 TOTAL SCORE: 6444 Bonus ------- Follower Combat Kills 432 Registered with UFD 300 Met Data Miner 300 Cogmind --------- Core Integrity 354/850 Matter 300/300 Energy 315/315 System Corruption 0% Temperature Cool (0) Movement Rolling (130) Ox2 Location -6/Data Miner Parts ------- > --- POWER (2) -------- Neutrino Core > --- PROPULSION (4) --- Compact Wheel > --- UTILITY (6) ------ Improved Heat Sink Large Storage Unit Salvage Targeting Computer Microactuators Microactuators > --- WEAPON (3) ------- Makeshift Axe Makeshift Axe Makeshift Axe > --- INVENTORY (15) --- Meta Core Scrap Suit Deep Structural Scanner Improved Power Shielding Layered Medium Armor Plating A0-MCA's Component Scanner Compact Ion Cannon Compact Ion Cannon CPS Tube (2) CPS Tube (2) Peak State ------------ > --- POWER ------------ Reinforced Deuterium Engine Light Angular Momentum Engine > --- PROPULSION ------- Overtuned Scrapsphere Overtuned Scrapsphere Overtuned Scrapsphere Overtuned Scrapsphere > --- UTILITY ---------- Scrap Suit Makeshift Microdissipator Network Large Storage Unit Makeshift Salvage Targeting Computer Layered Medium Armor Plating > --- WEAPON ----------- Makeshift Laser Beamcaster Beamcaster > --- INVENTORY -------- Meta Core Makeshift Hover Unit Makeshift Hover Unit Makeshift Hover Unit Makeshift Hover Unit Scrap Suit Deep Structural Scanner Improved Power Shielding Layered Medium Armor Plating A0-MCA's Component Scanner Compact Ion Cannon Compact Ion Cannon CPS Tube CPS Tube [Rating: 65] Favorites ----------- Power Ion Engine Engine Ion Engine Power Core Neutrino Core Propulsion Light Treads Treads Light Treads Leg Carbon-fiber Leg Wheel Overtuned Scrapsphere Hover Unit Makeshift Hover Unit Flight Unit Makeshift Flight Unit Utility Small Storage Unit Device Scrap Suit Storage Small Storage Unit Processor Makeshift Salvage Targeting Computer Protection Makeshift Kinetic Plating Weapon Battle Rifle Energy Gun Subdweller Laser Energy Cannon Compact Ion Cannon Ballistic Gun Battle Rifle Ballistic Cannon Advanced Assault Cannon Launcher Advanced EMP Blaster Special Weapon Mining Laser Slashing Weapon Makeshift Axe Build | -11 -10 -10 -8 -6 -6 -6 -6 ------- Run | Yrd Mat Sub Scr Fac Low Low Dat Slots Evolved 8 | . . . . 8 . . . Power 1 | . . . . 1 . . . Propulsion 2 | . . . . 2 . . . Utility 4 | . . . . 4 . . . Weapon 1 | . . . . 1 . . . Parts Attached 90 | 7 . 10 19 28 9 17 . Power 7 | 1 . . 1 3 . 2 . Engine 4 | 1 . . . 2 . 1 . Core 3 | . . . 1 1 . 1 . Reactor . | . . . . . . . . Propulsion 31 | 2 . 3 8 7 2 9 . Treads 8 | . . 3 2 1 2 . . Leg 4 | . . . . 2 . 2 . Wheel 9 | 2 . . 2 4 . 1 . Hover 5 | . . . 1 . . 4 . Flight 5 | . . . 3 . . 2 . Utility 27 | 2 . 1 6 9 4 5 . Device 11 | 1 . . 1 5 1 3 . Storage 3 | 1 . . 2 . . . . Processor 6 | . . . 1 3 1 1 . Hackware . | . . . . . . . . Protection 7 | . . 1 2 1 2 1 . Artifact . | . . . . . . . . Weapon 25 | 2 . 6 4 9 3 1 . Energy Gun 5 | . . 1 . 2 2 . . Energy Cannon 2 | . . . . 1 1 . . Ballistic Gun 13 | 2 . 4 4 3 . . . Ballistic Cannon 1 | . . . . 1 . . . Launcher 1 | . . . . 1 . . . Special Weapon 2 | . . 1 . 1 . . . Impact Weapon . | . . . . . . . . Slashing Weapon 1 | . . . . . . 1 . Piercing Weapon . | . . . . . . . . Special Melee Weapon . | . . . . . . . . Unidentified Prototypes 3 | . . . . 3 . . . Parts Lost 26 | . . 2 . 2 11 8 3 Power 3 | . . . . . 2 1 . Propulsion 11 | . . . . . 3 5 3 Utility 7 | . . . . 1 4 2 . Weapon 5 | . . 2 . 1 2 . . Highest Loss Streak 9 | . . 1 . 2 9 5 3 To Critical Strikes . | . . . . . . . . Average Backups 8 | . 3 7 6 12 13 10 10 Power . | . . . . . . . . Propulsion 1 | . 2 2 1 . 3 . . Utility 2 | . . . 2 7 5 5 5 Weapon 2 | . 1 4 1 2 1 2 2 Tool/Special . | . . . . . . . . Unused Backups 19 | . . 3 6 2 . . 8 Power 2 | . . 2 . . . . . Propulsion . | . . . . . . . . Utility 9 | . . . 3 1 . . 5 Weapon 4 | . . 1 2 1 . . . Tool/Special 4 | . . . 1 . . . 3 Average Slot Usage (%) 87 | . 100 99 86 87 74 65 86 Engine 11 | . 14 14 12 11 8 1 . Core 1 | . . . 1 . . 4 6 Treads 14 | . . 25 17 4 2 1 . Wheel 5 | . 28 2 2 18 20 . 6 Flight 4 | . . . 8 . . 5 13 Device 4 | . 14 3 . 14 11 9 20 Storage 9 | . 14 14 8 6 6 6 6 Processor 1 | . . . 1 3 3 . 6 Protection 7 | . . 10 8 5 5 2 . Energy Gun 2 | . . 3 2 . 12 . . Ballistic Gun 18 | . 28 22 23 13 . . . Slashing Weapon 1 | . . . . . . 18 20 Peak Build Rating 65 | 7 7 15 28 63 65 58 46 Average Rating 24 | 4 7 12 15 55 54 44 45 On Entrance 22 | . 7 7 15 15 49 39 46 Avg Prop Armor Cover (%) 9 | . . . 8 4 15 10 15 Naked Turns . | . . . . . . . . Heaviest Build 209 | 14 14 23 209 70 73 58 48 Greatest Support 63 | 20 20 40 43 63 60 48 16 Greatest Overweight (x) 19 | . . . 4 3 4 19 3 Average Overweight (x) . | . . . . 1 2 2 2 Largest Inventory Capacity 35 | 8 8 8 35 15 15 15 15 Average Capacity 12 | 6 8 8 14 15 15 15 15 Most Carried 21 | 3 3 8 21 15 15 15 11 Average Carried 9 | 1 3 7 7 13 14 11 11 Final Capacity 15 | 8 8 8 15 15 15 15 15 Final Carried 15 | 3 3 8 15 15 15 11 11 Scrap Suit Usage (%) 19 | . . . . 99 99 33 . Parts Cannibalized 15 | . . . . 11 . 4 . Class Distribution -------------------- 55% | Mutant 13% | Hauler-Mutant 13% | Scavenger-Scrapper 7% | Derelict-Mutant 3% | Scavenger-Gladiator Dominant Class ---------------- Mutant | -10/Materials Mutant | -10/Subcaves Mutant | -8/Scraptown Scavenger-Scrapper | -6/Factory Scavenger-Scrapper | -6/Lower Caves Scavenger-Gladiator | -6/Lower Caves Derelict-Gladiator | -6/Data Miner Resources | -11 -10 -10 -8 -6 -6 -6 -6 ----------- Run | Yrd Mat Sub Scr Fac Low Low Dat Matter Collected 2074 | 264 . 339 257 900 169 145 . Remotely . | . . . . . . . . Salvage Created 1945 | 27 . 466 . 966 260 226 . Parts 108 | 4 . 28 . 43 21 12 . Haulers Intercepted 1 | . . . . 1 . . . Recyclers Shooed 3 | . . . . 3 . . . Parts Field Recycled . | . . . . . . . . Retrieved Matter . | . . . . . . . . Parts Self-Destructed 45 | . . 14 . . 16 15 . Prevented 2 | . . . . . 2 . . Parts Restored . | . . . . . . . . Kills | -11 -10 -10 -8 -6 -6 -6 -6 ------- Run | Yrd Mat Sub Scr Fac Low Low Dat Combat Hostiles Destroyed 32 | . . 10 . 11 5 6 . Melee 6 | . . . . . . 6 . Guns 22 | . . 10 . 10 2 . . AOE 4 | . . . . 1 3 . . Classes Destroyed 11 | 1 . 3 . 5 2 . . Worker 1 | . . . . 1 . . . Tunneler 1 | 1 . . . . . . . Hauler 1 | . . . . 1 . . . Recycler 1 | . . . . 1 . . . Swarmer 8 | . . . . . 3 5 . Grunt 8 | . . 3 . 4 1 . . Brawler 2 | . . . . 2 . . . Sentry 4 | . . 1 . 2 . 1 . Programmer 3 | . . . . 3 . . . Behemoth 1 | . . . . . 1 . . Subdweller 6 | . . 6 . . . . . Best Kill Streak 3 | 1 . 2 . 3 3 3 . Combat Bots Only 3 | . . 2 . 3 3 3 . Max Kills in Single Turn 2 | 1 . 1 . 1 2 1 . Gunslinging . | . . . . . . . . Exploded 2 | . . . . 1 2 . . Melee 1 | . . . . . . 1 . Uniques/NPCs Destroyed . | . . . . . . . . Combat | -11 -10 -10 -8 -6 -6 -6 -6 -------- Run | Yrd Mat Sub Scr Fac Low Low Dat Hostile Shots Fired 335 | . . 52 . 135 81 63 4 Missed 106 | . . 15 . 50 25 15 1 Hits 229 | . . 37 . 85 56 48 3 Melee 7 | . . . . 2 . 5 . Projectile 222 | . . 37 . 83 56 43 3 AOE 2 | . . . . 2 . . . Critical Strikes 6 | . . 1 . 3 . 2 . Damage Taken 4785 | . . 772 . 1514 1480 878 141 Core 713 | . . 217 . 22 143 331 . Absorbed by Shields . | . . . . . . . . Redirected to Shielding 66 | . . . . . . 66 . Ignored by Resistances 2 | . . 2 . . . . . Regen/Repaired (Parts) 128 | . . . . 88 . 40 . Core Remaining (%) 56 | 100 . . 13 . . . . Volleys Fired 176 | 1 . 72 . 77 26 . . Largest 3 | 2 . 2 . 3 3 . . Hottest 200 | 40 . 100 . 140 200 . . Shots Fired 310 | 2 . 105 . 150 53 . . Gun 280 | 2 . 87 . 143 48 . . Cannon . | . . . . . . . . Launcher 10 | . . . . 5 5 . . Special 20 | . . 18 . 2 . . . Kinetic 208 | 2 . 67 . 139 . . . Thermal 90 | . . 38 . 4 48 . . Explosive . | . . . . . . . . Electromagnetic 10 | . . . . 5 5 . . Robot Hit Streak 13 | 1 . 13 . 9 8 . . Robot Miss Streak 6 | . . 5 . 6 3 . . Penetration Max 1 | . . . . 1 . . . Secondary Targets 3 | . . 2 . 1 . . . Max Gunslinging Chain 1 | . . 1 . 1 . . . Shots Hit Robots 180 | 1 . 44 . 80 37 17 1 Core Hits 76 | 1 . 19 . 35 13 8 . Critical Kills 4 | . . 1 . 3 . . . Critical Parts Destroyed 4 | . . . . 4 . . . Critical Strikes 18 | . . 2 . 8 5 3 . Burn 6 | . . . . 1 5 . . Destroy 9 | . . 2 . 7 . . . Sever 3 | . . . . . . 3 . Melee Attacks 28 | . . . . . . 27 1 Impact . | . . . . . . . . Slashing 28 | . . . . . . 27 1 Piercing . | . . . . . . . . Sneak Attacks 1 | . . . . . . . 1 Combat Hostiles . | . . . . . . . . Follow-up Attacks 6 | . . . . . . 6 . Damage Inflicted 4229 | 11 . 610 . 1977 965 592 74 Guns 3233 | 11 . 610 . 1776 836 . . Cannons . | . . . . . . . . Explosions 330 | . . . . 201 129 . . Melee 666 | . . . . . . 592 74 Ramming . | . . . . . . . . Kinetic 2327 | 11 . 610 . 1706 . . . Thermal 906 | . . . . 70 836 . . Explosive . | . . . . . . . . Electromagnetic 330 | . . . . 201 129 . . Impact . | . . . . . . . . Slashing 666 | . . . . . . 592 74 Piercing . | . . . . . . . . Highest Corruption 2 | . . . . 2 . . . Average Corruption 1 | . . . . 1 . . . Corruption Purged 4 | . . . . 4 . . . Corruption Blocked . | . . . . . . . . Effects 3 | . . . . 3 . . . Matter Fused 2 | . . . . 2 . . . Alerts 1 | . . . . 1 . . . Overload Shots 1 | . . . . . 1 . . Effects 1 | . . . . . 1 . . Heat Surge 1 | . . . . . 1 . . Overflow Damage 15 | . . . . . . 15 . Projectiles . | . . . . . . . . Explosions . | . . . . . . . . Melee 15 | . . . . . . 15 . Knockbacks . | . . . . . . . . Impact . | . . . . . . . . Kinetic . | . . . . . . . . Secondary . | . . . . . . . . Self-Inflicted Damage 40 | . . . . 17 23 . . Shots 2 | . . . . 1 1 . . Rammed . | . . . . . . . . Targets Rammed . | . . . . . . . . Kicked . | . . . . . . . . Crushed . | . . . . . . . . Highest Temperature 200 | . . 22 . 200 200 . . Average Temperature 100 | . . 6 . 87 146 . . Received Heat Transfer 696 | . . 201 . 213 243 39 . Siege Activations . | . . . . . . . . Martial Activations . | . . . . . . . . Shielding Activations . | . . . . . . . . Robots Disrupted . | . . . . . . . . Combat Hostiles . | . . . . . . . . Robots Corrupted . | . . . . . . . . Combat Hostiles . | . . . . . . . . Parts Fried . | . . . . . . . . Impact Corruptions . | . . . . . . . . Robots Melted . | . . . . . . . . Combat Hostiles . | . . . . . . . . Parts Melted 3 | . . . . 1 2 . . Heat Transferred 2113 | . . . . 250 1863 . . Parts Sabotaged 1 | . . . . . . 1 . Parts Stolen . | . . . . . . . . Parts Stripped . | . . . . . . . . Power Chain Reactions 1 | . . . . 1 . . . Alert | -11 -10 -10 -8 -6 -6 -6 -6 ------- Run | Yrd Mat Sub Scr Fac Low Low Dat Maximum Alert Level 1 | . . . . 1 . . . Low Security (%) 84 | 100 100 . . 82 . . . Level 1 15 | . . . . 17 . . . Level 2 . | . . . . . . . . Level 3 . | . . . . . . . . Level 4 . | . . . . . . . . Level 5 . | . . . . . . . . High Security . | . . . . . . . . Max Security . | . . . . . . . . Peak Influence 257 | 5 8 . . 257 . . . Initial 3 | . 3 . . . . . . Average 107 | 1 1 . . 117 . . . Influence Increases 1311 | 5 5 90 . 856 120 235 . Destroy 0b10 Robot/C 800 | . . 80 . 500 100 120 . Destroy 0b10 Robot/NC 30 | 5 . . . 25 . . . Destroy Leader 162 | . . 10 . 122 20 10 . Allied During Kill 57 | . . . . 57 . . . Successful Hack 5 | . 5 . . . . . . Disable Machine 15 | . . . . 15 . . . Destroy Structure 2 | . . . . 2 . . . Lose Combat Pursuer 240 | . . . . 135 . 105 . Influence Decreases 1311 | . 10 90 . 620 356 235 . Entered New Map 90 | . 2 . . . 88 . . Time Decay 859 | . 8 90 . 420 180 161 . Lost Part 182 | . . . . 20 88 74 . Lost Ally 180 | . . . . 180 . . . Squads Dispatched 13 | . . . . 12 . 1 . Investigation 3 | . . . . 3 . . . Extermination 3 | . . . . 3 . . . Reinforcement 6 | . . . . 6 . . . Assault 1 | . . . . . . 1 . Garrison . | . . . . . . . . Intercept . | . . . . . . . . Searches Triggered . | . . . . . . . . Construction Impeded . | . . . . . . . . Haulers Reinforced 1 | . . . . 1 . . . Active Scanning Responses . | . . . . . . . . Cargo Convoy Interrupts . | . . . . . . . . Stealth | -11 -10 -10 -8 -6 -6 -6 -6 --------- Run | Yrd Mat Sub Scr Fac Low Low Dat Distress Signals . | . . . . . . . . Communications Jammed . | . . . . . . . . Distress Signals . | . . . . . . . . Times Spotted 72 | . . 12 . 33 10 13 4 Peak Tracking Total 10 | . . 2 . 7 5 10 4 Tactical Retreats 6 | . . . . 3 . 3 . Traps | -11 -10 -10 -8 -6 -6 -6 -6 ------- Run | Yrd Mat Sub Scr Fac Low Low Dat Traps Triggered 6 | . . 2 . 4 . . . Indirectly 3 | . . . . 3 . . . Trap Hack Attempts . | . . . . . . . . Triggered . | . . . . . . . . Disarmed . | . . . . . . . . Reprogrammed . | . . . . . . . . Reused . | . . . . . . . . Traps Extracted . | . . . . . . . . Installed . | . . . . . . . . Triggered . | . . . . . . . . Machines | -11 -10 -10 -8 -6 -6 -6 -6 ---------- Run | Yrd Mat Sub Scr Fac Low Low Dat Machines Disabled 2 | . . 1 . 1 . . . Max in Single Turn 1 | . . 1 . . . . . Garrison Access 1 | . . . . 1 . . . Machines Repaired . | . . . . . . . . Machines Dismantled . | . . . . . . . . Machines Sabotaged . | . . . . . . . . Overloaded Fab Kills . | . . . . . . . . Hacking | -11 -10 -10 -8 -6 -6 -6 -6 --------- Run | Yrd Mat Sub Scr Fac Low Low Dat Machines Accessed 11 | . 1 2 2 4 1 1 . Terminals 1 | . 1 . . . . . . Fabricators . | . . . . . . . . Repair Stations . | . . . . . . . . Recycling Units 3 | . . . . 3 . . . Scanalyzers . | . . . . . . . . Garrison Access 1 | . . . . 1 . . . Total Hacks 43 | . 3 5 24 9 1 1 . Successful 36 | . 1 5 24 4 1 1 . Failed 7 | . 2 . . 5 . . . Catastrophic 2 | . . . . 2 . . . Database Lockouts . | . . . . . . . . Manual 7 | . . . . 7 . . . Terminals 3 | . 3 . . . . . . Fabricators . | . . . . . . . . Repair Stations . | . . . . . . . . Recycling Units 7 | . . . . 7 . . . Scanalyzers . | . . . . . . . . Garrison Access 2 | . . . . 2 . . . Terminal Hacks 32 | . 1 5 24 . 1 1 . Record 28 | . . 4 24 . . . . Open Door 2 | . . . . . 1 1 . Zone Layout 1 | . 1 . . . . . . Proto ID Catalog 1 | . . 1 . . . . . Fabricator Hacks . | . . . . . . . . Repair Station Hacks . | . . . . . . . . Recycling Unit Hacks . | . . . . . . . . Scanalyzer . | . . . . . . . . Garrison Access Hacks 1 | . . . . 1 . . . Seal Access 1 | . . . . 1 . . . Unauthorized Hacks 3 | . . . . 3 . . . Terminals . | . . . . . . . . Fabricators . | . . . . . . . . Repair Stations . | . . . . . . . . Recycling Units 3 | . . . . 3 . . . Fedlink 1 | . . . . 1 . . . Scrapoids 2 | . . . . 2 . . . Scanalyzers . | . . . . . . . . Garrison Access . | . . . . . . . . Data Cores Recovered . | . . . . . . . . Used . | . . . . . . . . Hacking Detections 4 | . 1 . . 3 . . . Full Trace Events . | . . . . . . . . Feedback Events . | . . . . . . . . Feedback Blocked . | . . . . . . . . Robot Schematics Acquired . | . . . . . . . . Robots Built . | . . . . . . . . Authchips . | . . . . . . . . Time . | . . . . . . . . Total Robot Build Rating . | . . . . . . . . Part Schematics Acquired . | . . . . . . . . Parts Built . | . . . . . . . . Authchips . | . . . . . . . . Time . | . . . . . . . . Total Part Build Rating . | . . . . . . . . Part Studies Acquired . | . . . . . . . . Parts Repaired . | . . . . . . . . Time . | . . . . . . . . Parts Recycled . | . . . . . . . . Recycled Matter . | . . . . . . . . Retrieved Matter . | . . . . . . . . Retrieved Components . | . . . . . . . . Parts Scanalyzed . | . . . . . . . . Part Schematics Acquired . | . . . . . . . . Parts Damaged . | . . . . . . . . Bothacking | -11 -10 -10 -8 -6 -6 -6 -6 ------------ Run | Yrd Mat Sub Scr Fac Low Low Dat Used RIF Installer . | . . . . . . . . Robots Hacked . | . . . . . . . . Non-combat . | . . . . . . . . Combat . | . . . . . . . . Robot Hacks Applied . | . . . . . . . . Relay Couplers Released 3 | . . . . 3 . . . Programmers 3 | . . . . 3 . . . Fabnet Peak Effective % . | . . . . . . . . Robots Rewired 1 | . . . . 1 . . . Allies Hacked 1 | . . . . 1 . . . Hacks Repelled . | . . . . . . . . Allies | -11 -10 -10 -8 -6 -6 -6 -6 -------- Run | Yrd Mat Sub Scr Fac Low Low Dat Total Allies 11 | . . . . 11 . . . Largest Group 5 | . . . . 5 . . . Highest-Rated Group 146 | . . . . 146 . . . Highest-Rated Ally 41 | . . . . 41 . . . Initial UFD Resources 27 | . . . . 23 27 27 27 Total Orders . | . . . . . . . . Ally Attacks 90 | . . . . 90 . . . Total Damage 1931 | . . . . 1931 . . . Kills 16 | . . . . 16 . . . Allies Corrupted 1 | . . . . 1 . . . Allies Melted . | . . . . . . . . Intel | -11 -10 -10 -8 -6 -6 -6 -6 ------- Run | Yrd Mat Sub Scr Fac Low Low Dat Active Infowar (turns) 604 | 5 61 538 . . . . . Seismic 604 | 5 61 538 . . . . . Robot Analysis Total . | . . . . . . . . Derelict Logs Recovered 8 | . . 2 3 . 1 2 . Drone Launches . | . . . . . . . . Drone Recoveries . | . . . . . . . . Exploration | -11 -10 -10 -8 -6 -6 -6 -6 ------------- Run | Yrd Mat Sub Scr Fac Low Low Dat Turns Passed 10244 | 57 61 2277 5062 1304 421 953 109 Spaces Moved 6897 | 51 56 1311 3583 1067 323 453 53 Core 197 | 2 . . 189 . . 6 . Treads 2630 | . . 1131 1379 119 1 . . Legs 127 | . . . . 11 . 97 19 Wheels 1781 | 49 56 180 120 937 322 83 34 Hover 266 | . . . . . . 266 . Flight 1896 | . . . 1895 . . 1 . Fastest Speed 44 | 50 80 80 44 80 80 58 130 Average Speed 135 | 78 80 149 138 98 93 195 201 Slowest Speed 1000 | 80 80 160 480 190 160 1000 330 Overloaded Moves . | . . . . . . . . Propulsion Burnouts . | . . . . . . . . Robots Hopped 2 | . . . 2 . . . . Potential Cave-ins . | . . . . . . . . Cave-ins Triggered . | . . . . . . . . Exploration Rate (%) 45 | 3 8 67 89 28 56 49 62 Regions Visited 7 Branch Regions 5 Pre-discovered Areas 5 | . . . 5 . . . . Known Exits Taken 3 | . . . . 1 1 1 . Unknown Exits Taken 4 | 1 1 1 1 . . . . Scrap Searched 18 | . . 3 10 . 2 3 . Spaces Dug 3 | . . 2 . . . 1 . Terrain Destroyed 3 | . . 2 . . . 1 . Melee 1 | . . . . . . 1 . Projectile 2 | . . 2 . . . . . AOE . | . . . . . . . . Terrain Rammed . | . . . . . . . . Walls Destroyed . | . . . . . . . . Machines Disabled . | . . . . . . . . Actions | -11 -10 -10 -8 -6 -6 -6 -6 --------- Run | Yrd Mat Sub Scr Fac Low Low Dat Total 7474 | 62 71 1501 3661 1230 397 498 54 Wait 148 | 1 16 86 1 12 29 3 . Move 6887 | 50 55 1310 3579 1066 322 452 53 Hop 1 | . . . 1 . . . . Pick Up 64 | 3 . 12 30 13 6 . . Fast Attach 40 | 7 . 1 9 6 3 14 . Attach 16 | . . 1 2 4 5 4 . Detach 6 | . . . 2 2 2 . . Swap 53 | . . 9 18 24 2 . . Drop 50 | . . 10 19 15 2 4 . Fire 176 | 1 . 72 . 77 26 . . Melee 22 | . . . . . . 21 1 Ram . | . . . . . . . . Kick . | . . . . . . . . Crush . | . . . . . . . . Escape Stasis 8 | . . . . 8 . . . Rewire 3 | . . . . 3 . . . Trap . | . . . . . . . . Miscellaneous . | . . . . . . . . Route ------- -11/Scrapyard -10/Materials -10/Subcaves (discovered 2 exits: *Scr x2) -8/Scraptown (discovered 2 exits: *Fac x2) -6/Factory (discovered 3 exits: *Fac x2 / *Low) -6/Lower Caves -6/Lower Caves (discovered 2 exits: *Fac / *Dat) -6/Data Miner (discovered 1 exit: [*Pro]) History --------- Turn | Location | Event 10 | -11/Scrapyard | Discovered new exit (range 14) 58 | -11/Scrapyard | Entered Materials 59 | -10/Materials | Met a group of wandering Federalists 94 | -10/Materials | Discovered new exit (range 6) 119 | -10/Materials | Entered Subcaves 119 | -10/Subcaves | Accompanied by 2 allies 120 | -10/Subcaves | Continued accompanying wandering Federalists (5) 120 | -10/Subcaves | Approached by a straggling Scientist 209 | -10/Subcaves | A swath of the cavern ceiling suddenly collapsed 318 | -10/Subcaves | Build established: Mutant 349 | -10/Subcaves | Wandering Federalist uncovered a shortcut to Scraptown 450 | -10/Subcaves | Shifting Twisted Machinery released Riot Gun 534 | -10/Subcaves | Shifting Twisted Machinery released Sub. Laser 572 | -10/Subcaves | Disturbed a concealed Subdweller 642 | -10/Subcaves | Shifting Twisted Machinery released Sub. Power Source 652 | -10/Subcaves | Shifting Twisted Machinery released Mak. Kinetic Plating 671 | -10/Subcaves | Core integrity fell below 50% 867 | -10/Subcaves | Learned 8 Materials zone layouts 1045 | -10/Subcaves | A swath of the cavern ceiling suddenly collapsed 1132 | -10/Subcaves | Ambushed by Subdwellers from Twisted Machinery 1466 | -10/Subcaves | Visited Clippyterm 1471 | -10/Subcaves | Learned Factory stockpile data 1820 | -10/Subcaves | Visited 4L-MR0's lab 1842 | -10/Subcaves | Found Meta Core 1862 | -10/Subcaves | Core integrity fell below 20% 2396 | -10/Subcaves | Entered Scraptown 2464 | -8/Scraptown | Heard Great Nut preacher, LISTEN AND RECITE! 2600 | -8/Scraptown | Visited TADAMA 2636 | -8/Scraptown | Visited UFD Registry 2636 | -8/Scraptown | Registered with UFD as "Ioncell" 2662 | -8/Scraptown | Visited Scrapoid Research Area 2681 | -8/Scraptown | Visited Supply Room 2753 | -8/Scraptown | Visited Assassins FH 2776 | -8/Scraptown | Visited Bundlers 3100 | -8/Scraptown | Scanned Subdweller tech in exchange for log data 3104 | -8/Scraptown | Learned location of Testing (-3) 3105 | -8/Scraptown | Learned Factory terminal intel 3107 | -8/Scraptown | Learned Research garrison access intel 3152 | -8/Scraptown | Discovered new exit (range 11) 3184 | -8/Scraptown | Guru changed UFD alias to "Kinetiranger" 3385 | -8/Scraptown | Visited Supply Room 3420 | -8/Scraptown | Visited Scrap Suit Storage 3593 | -8/Scraptown | Visited A0-MCA Data Center 3635 | -8/Scraptown | Visited Research Penetration Think Tank 3742 | -8/Scraptown | Visited Abandonware Association 3763 | -8/Scraptown | Learned abandonware demo "REVENGE.EXE" 3763 | -8/Scraptown | Learned abandonware demo "KABOOM.EXE" 3796 | -8/Scraptown | Visited Curators Association 3870 | -8/Scraptown | Visited Junk Repository 3945 | -8/Scraptown | Visited Botcube Research 3974 | -8/Scraptown | Visited Cartography Club 4813 | -8/Scraptown | Build established: Derelict-Mutant 5160 | -8/Scraptown | Given an A+ rating by A0-MCA 5164 | -8/Scraptown | Found A0-MCA's Component Scanner 5216 | -8/Scraptown | Learned location of Lower Caves (-7) 5216 | -8/Scraptown | Learned location of Upper Caves (-5) 5216 | -8/Scraptown | Learned location of Zion (-7) 5216 | -8/Scraptown | Learned location of Extension (-4) 5216 | -8/Scraptown | Learned 8 Factory zone layouts 5216 | -8/Scraptown | Learned 12 Factory zone layouts 5216 | -8/Scraptown | Learned 12 Lower Caves zone layouts 5216 | -8/Scraptown | Learned 4 Access zone layouts 5216 | -8/Scraptown | Learned 16 Lower Caves zone layouts 5216 | -8/Scraptown | Learned 20 Proximity Caves zone layouts 5216 | -8/Scraptown | Learned 24 Proximity Caves zone layouts 5216 | -8/Scraptown | Learned 4 Hub_04(d) zone layouts 5216 | -8/Scraptown | Learned 4 Armory zone layouts 5216 | -8/Scraptown | Learned Factory emergency access door positions 5216 | -8/Scraptown | Learned location of 2 exits from Factory 5216 | -8/Scraptown | Learned location of 2 exits from Upper Caves 5220 | -8/Scraptown | Build established: Mutant 5230 | -8/Scraptown | Found Deep Structural Scanner 5401 | -8/Scraptown | Visited SPCMW 5427 | -8/Scraptown | Visited Cave Peace 6336 | -8/Scraptown | Build established: Hauler-Mutant 6665 | -8/Scraptown | Found Scrap Suit 6670 | -8/Scraptown | Found Scrap Suit 6676 | -8/Scraptown | Found Scrap Suit 6716 | -8/Scraptown | Found Scrap Suit 7453 | -8/Scraptown | Discovered new exit (range 3) 7458 | -8/Scraptown | Entered Factory 7458 | -6/Factory | Evolved 8 slots: Power x1, Propulsion x2, Utility x4, Weapon x1 7459 | -6/Factory | Identified exit to Lower Caves 7459 | -6/Factory | Identified exit to Factory 7463 | -6/Factory | Loaded intel: 26 terminal locations 7537 | -6/Factory | Scrapoid reinforcements arrived 7537 | -6/Factory | Attached CPS modules to 06F04-D 7539 | -6/Factory | Attached CPS modules to 06F05-D 7754 | -6/Factory | Lost 3 allies 7794 | -6/Factory | Found Scrap Suit 7935 | -6/Factory | Spotted B-75 Beast 8041 | -6/Factory | Build established: Scavenger-Scrapper 8385 | -6/Factory | Loaded intel: 7 recycling unit locations 8490 | -6/Factory | Scrapoids reinforcements arrived? 8700 | -6/Factory | Discovered exit to Factory (range 15) 8762 | -6/Factory | Entered Lower Caves 8763 | -6/Lower Caves | Identified exit to Lower Caves 8794 | -6/Lower Caves | Lost 3 parts (2u1w) 9012 | -6/Lower Caves | Learned Factory security intel 9019 | -6/Lower Caves | Spotted B-75 Beast 9085 | -6/Lower Caves | Destroyed B-75 Beast 9109 | -6/Lower Caves | Lost 9 parts (1p3n3u2w) 9133 | -6/Lower Caves | Attracted the attention of an 0b10 outpost 9183 | -6/Lower Caves | Entered another Lower Caves area 9184 | -6/Lower Caves | Identified exit to Data Miner 9226 | -6/Lower Caves | Learned Factory stockpile data 9460 | -6/Lower Caves | Attracted the attention of an 0b10 outpost 9497 | -6/Lower Caves | Encountered a Warlord checkpoint 9572 | -6/Lower Caves | Build established: Derelict-Mutant 9740 | -6/Lower Caves | Core integrity fell below 50% 9804 | -6/Lower Caves | Lost 5 parts (1p3n1u) 10035 | -6/Lower Caves | Build established: Scavenger-Gladiator 10062 | -6/Lower Caves | Learned 12 Factory zone layouts 10136 | -6/Lower Caves | Entered Data Miner 10136 | -6/Data Miner | Discovered new exit (range 6) 10199 | -6/Data Miner | Met Data Miner 10244 | -6/Data Miner | Data Conduit disabled 10245 | -6/Data Miner | Self-destructed Last Messages --------------- 10105_ Found Microactuators. 10105_ Found Com. Wheel. 10105_ Found 56 Matter. 10111_ Acquired Com. Wheel. 10113_ Acquired 10 matter. 10119_ Acquired Microactuators. 10127_ Acquired Salvage Targeting Computer. 10129_ Acquired 20 matter. LOCATION=DATA MINER GOAL=ESCAPE 10136_ EXIT=FOUND Data Miner: I'm the Data Miner, and I've been given permission to aid you with a little knowledge. Find what you need on the terminals, then be on your way because masking your presence is increasingly difficult. 10233_ Sneak attack on Data Miner. 10233_ Data Miner disappears through a trap door. 10243_ Carbon-fiber Leg destroyed. 10243_ VTOL Module destroyed. 10244_ Data Conduit disabled. Map ----- +----------------------------------------------------+ | | | | | | | | | | | | | | | | | | | | | | | | | | | | | ??????????????????????????????????????????? | | ??????????????????????????????????????????? | | ??????????????????????????????????????????? | | ??????????????????????????????????????????? | | ?????????????????????????????????????####?? | | ??????###############??????????????### #?? | | ??????""""""""""""""######????????## #?? | | ?????"""""""" """"""""# # #g# ## < ##?? | | ????""""""""" g g ### | | ????"""""" g | | ????"""""" | | ????""""" @ | | ????"""""" | | ????"""""" """"""""""""""""### | | ????""""""" """"###############?? | | ?????"""""" """"###???????????????? | | ??????""""""" "#####?????????????????? | | ??????######"## "#?????????????????????? | | ???????????#"### "#?????????????????????? | | ???????????#"#?# "#?????????????????????? | | ???????????#"#? "#?????????????????????? | | ???????????#"?# "#?????????????????????? | | ?????????????? "#?????????????????????? | | ??????????????## "#?????????????????????? | | ???????????????# "#?????????????????????? | | ???????????????# "??????????????????????? | | ???????????????? "??????????????????????? | | ???????????????? "??????????????????????? | | ????????????????? ????????????????????????? | | ??????????????????????????????????????????? | | ??????????????????????????????????????????? | | ??????????????????????????????????????????? | | ??????????????????????????????????????????? | | ??????????????????????????????????????????? | | ??????????????????????????????????????????? | | ??????????????????????????????????????????? | +----------------------------------------------------+ Best States ------------- Heat Dissipation 51 Energy Generation 30 Energy Capacity 505 Matter Stores 300 Matter Capacity 300 Sight Range 16 Terrain Scan Density 10 Armor Coverage 225 Resistance: KI 10 Power Shielding 66 Melee Speed Boost 40 Phase Shifting 5 Evasion (%) 61 Targeting Accuracy 8 Recoil Reduction 3 Salvage Targeting 8 Item Schematics ----------------- None Robot Schematics ------------------ None Fabricated ------------ Nothing Repaired ---------- Nothing Studied --------- None Alien Tech Used ----------------- None Achievements -------------- None Challenges ------------ None Game ------ Seed EnergyActuatorThrower Manual? 0 Play Time 00:55:55 Cumulative 487.3 hours Start 2026.09.13 @ 23:11:27 End 2026.09.14 @ 00:07:38 Sessions 1 Manual Loads 0 Difficulty Rogue Special Mode None Game No. 356 Rogue 356 Adventurer 0 Explorer 0 Win Type - Total 10 Types 4/0/4/2/0/0/0/0/0/0 Lore% 63 Gallery% 72 Achievement% 59 Wizard Run 0 Options --------- Layout 2 ASCII 0 Keyboard 1 Movement Vi Keybinds 0 Fullscreen 2 Font 32/Smallcaps Map View 77x44 Zoom Use 0% Tactical HUD 1 Map Filters NONE Filters NONE Steam 1 RUN: 5fc02c9d-6fed-48b8-a191-4c945732f560